[Event "Titled Tuesday Blitz June 28 Late 2022"]
[White "Corrales Jimenez, Fidel"]
[Black "Daeschler, Florian"]
[WhiteFideId "3506690"]
[BlackFideId "20678193"]
[WhiteElo "2541"]
[BlackElo "2221"]
[Result "1-0"]
[Round "05"]
[TimeControl "180+1"]
[Date "2022.06.29"]
[WhiteClock "0:00:13"]
[BlackClock "0:00:03"]

1. d4 {[%clk 0:03:00]}  Nf6 {[%clk 0:02:54]} 2. c4 {[%clk 0:03:00]}  c5 {[%clk 0:02:54]} 3. d5 {[%clk 0:03:00]}  b5 {[%clk 0:02:54]} 4. cxb5 {[%clk 0:03:00]}  a6 {[%clk 0:02:55]} 5. bxa6 {[%clk 0:03:00]}  g6 {[%clk 0:02:54]} 6. Nc3 {[%clk 0:03:01]}  Bxa6 {[%clk 0:02:45]} 7. Nf3 {[%clk 0:03:00]}  Bg7 {[%clk 0:02:43]} 8. e4 {[%clk 0:03:00]}  Bxf1 {[%clk 0:02:42]} 9. Kxf1 {[%clk 0:03:00]}  d6 {[%clk 0:02:43]} 10. g3 {[%clk 0:02:59]}  O-O {[%clk 0:02:43]} 11. Kg2 {[%clk 0:03:00]}  Nbd7 {[%clk 0:02:44]} 12. Qe2 {[%clk 0:02:54]}  Qa5 {[%clk 0:02:37]} 13. Bd2 {[%clk 0:02:53]}  Rfb8 {[%clk 0:02:35]} 14. b3 {[%clk 0:02:53]}  Ng4 {[%clk 0:02:02]} 15. h3 {[%clk 0:02:23]}  Nge5 {[%clk 0:01:21]} 16. Nxe5 {[%clk 0:02:22]}  Bxe5 {[%clk 0:01:19]} 17. Na4 {[%clk 0:01:52]}  Qa7 {[%clk 0:00:49]} 18. Bc3 {[%clk 0:01:43]}  Bxc3 {[%clk 0:00:41]} 19. Nxc3 {[%clk 0:01:44]}  Rb4 {[%clk 0:00:41]} 20. h4 {[%clk 0:01:31]}  h5 {[%clk 0:00:33]} 21. Rac1 {[%clk 0:01:20]}  Ne5 {[%clk 0:00:32]} 22. Rhd1 {[%clk 0:01:19]}  Qb7 {[%clk 0:00:30]} 23. Rd2 {[%clk 0:01:17]}  Kh7 {[%clk 0:00:26]} 24. Nd1 {[%clk 0:00:40]}  Qa7 {[%clk 0:00:22]} 25. Rc3 {[%clk 0:00:37]}  Qa5 {[%clk 0:00:21]} 26. Rdc2 {[%clk 0:00:34]}  Rab8 {[%clk 0:00:20]} 27. f3 {[%clk 0:00:33]}  Qa7 {[%clk 0:00:19]} 28. Nf2 {[%clk 0:00:33]}  Qd7 {[%clk 0:00:18]} 29. f4 {[%clk 0:00:33]}  Ng4 {[%clk 0:00:18]} 30. Nxg4 {[%clk 0:00:33]}  hxg4 {[%clk 0:00:18]} 31. Rc4 {[%clk 0:00:32]}  R4b6 {[%clk 0:00:17]} 32. Rd2 {[%clk 0:00:31]}  Ra8 {[%clk 0:00:17]} 33. e5 {[%clk 0:00:30]}  Qf5 {[%clk 0:00:17]} 34. Re4 {[%clk 0:00:28]}  Kg7 {[%clk 0:00:16]} 35. Qe3 {[%clk 0:00:20]}  Rba6 {[%clk 0:00:16]} 36. a4 {[%clk 0:00:18]}  Rb6 {[%clk 0:00:16]} 37. Rc4 {[%clk 0:00:19]}  Rab8 {[%clk 0:00:16]} 38. Rd3 {[%clk 0:00:19]}  Rb4 {[%clk 0:00:16]} 39. Rxb4 {[%clk 0:00:18]}  Rxb4 {[%clk 0:00:17]} 40. a5 {[%clk 0:00:16]}  Re4 {[%clk 0:00:17]} 41. Qd2 {[%clk 0:00:16]}  dxe5 {[%clk 0:00:17]} 42. fxe5 {[%clk 0:00:16]}  Qxe5 {[%clk 0:00:16]} 43. Qc3 {[%clk 0:00:16]}  Re2+ {[%clk 0:00:16]} 44. Kf1 {[%clk 0:00:16]}  Qxc3 {[%clk 0:00:13]} 45. Rxc3 {[%clk 0:00:16]}  Ra2 {[%clk 0:00:14]} 46. Rxc5 {[%clk 0:00:17]}  Kf6 {[%clk 0:00:14]} 47. b4 {[%clk 0:00:16]}  Ke5 {[%clk 0:00:14]} 48. Rc7 {[%clk 0:00:15]}  Ke4 {[%clk 0:00:12]} 49. Rxe7+ {[%clk 0:00:15]}  Kf3 {[%clk 0:00:13]} 50. Rxf7+ {[%clk 0:00:15]}  Kxg3 {[%clk 0:00:14]} 51. d6 {[%clk 0:00:15]}  Kh2 {[%clk 0:00:11]} 52. Rf6 {[%clk 0:00:11]}  g3 {[%clk 0:00:11]} 53. Rxg6 {[%clk 0:00:11]}  g2+ {[%clk 0:00:11]} 54. Ke1 {[%clk 0:00:10]}  Ra3 {[%clk 0:00:07]} 55. Rxg2+ {[%clk 0:00:08]}  Kxg2 {[%clk 0:00:06]} 56. Kd2 {[%clk 0:00:05]}  Rg3 {[%clk 0:00:05]} 57. d7 {[%clk 0:00:05]}  Rg8 {[%clk 0:00:05]} 58. Kc3 {[%clk 0:00:05]}  Rd8 {[%clk 0:00:05]} 59. Kc4 {[%clk 0:00:06]}  Rxd7 {[%clk 0:00:06]} 60. Kc5 {[%clk 0:00:07]}  Kf3 {[%clk 0:00:06]} 61. b5 {[%clk 0:00:07]}  Rg7 {[%clk 0:00:06]} 62. Kc6 {[%clk 0:00:08]}  Ke4 {[%clk 0:00:06]} 63. b6 {[%clk 0:00:08]}  Rg6+ {[%clk 0:00:06]} 64. Kb7 {[%clk 0:00:08]}  Kd5 {[%clk 0:00:05]} 65. h5 {[%clk 0:00:09]}  Rg7+ {[%clk 0:00:04]} 66. Kb8 {[%clk 0:00:10]}  Kc6 {[%clk 0:00:04]} 67. h6 {[%clk 0:00:11]}  Rg8+ {[%clk 0:00:03]} 68. Ka7 {[%clk 0:00:11]}  Rh8 {[%clk 0:00:03]} 69. a6 {[%clk 0:00:11]}  Rxh6 {[%clk 0:00:02]} 70. b7 {[%clk 0:00:12]}  Rh7 {[%clk 0:00:02]} 71. Ka8 {[%clk 0:00:12]}  Kb6 {[%clk 0:00:02]} 72. b8=Q+ {[%clk 0:00:11]}  Kxa6 {[%clk 0:00:03]} 73. Qd6+ {[%clk 0:00:11]}  Kb5 {[%clk 0:00:03]} 74. Qe5+ {[%clk 0:00:11]}  Kc4 {[%clk 0:00:03]} 75. Qe4+ {[%clk 0:00:11]}  Kc3 {[%clk 0:00:03]} 76. Qxh7 {[%clk 0:00:12]}  Kb4 {[%clk 0:00:02]} 77. Kb7 {[%clk 0:00:13]}  Ka5 {[%clk 0:00:03]} 78. Qf5+ {[%clk 0:00:13]} 1-0


[Site "https://www.chess.com"]

[Event "Titled Tuesday Blitz June 28 Late 2022"]
[White "Cruz, Cristhian"]
[Black "Maksimovic, Bojan"]
[WhiteFideId "3801969"]
[BlackFideId "14408120"]
[WhiteElo "2497"]
[BlackElo "2453"]
[Result "1-0"]
[Round "05"]
[TimeControl "180+1"]
[Date "2022.06.28"]
[WhiteClock "0:00:07"]
[BlackClock "0:00:04"]

1. d4 {[%clk 0:03:00]}  Nf6 {[%clk 0:03:00]} 2. c4 {[%clk 0:03:00]}  g6 {[%clk 0:03:00]} 3. Nc3 {[%clk 0:02:59]}  Bg7 {[%clk 0:03:01]} 4. e4 {[%clk 0:02:59]}  d6 {[%clk 0:03:02]} 5. Nf3 {[%clk 0:03:00]}  O-O {[%clk 0:03:02]} 6. Be2 {[%clk 0:03:00]}  Nbd7 {[%clk 0:03:03]} 7. O-O {[%clk 0:03:00]}  e5 {[%clk 0:03:04]} 8. Re1 {[%clk 0:03:00]}  Qe7 {[%clk 0:03:02]} 9. d5 {[%clk 0:02:54]}  c5 {[%clk 0:02:54]} 10. g3 {[%clk 0:02:51]}  Kh8 {[%clk 0:02:51]} 11. Bg5 {[%clk 0:02:49]}  h6 {[%clk 0:02:51]} 12. Bd2 {[%clk 0:02:49]}  Nh7 {[%clk 0:02:51]} 13. Nh4 {[%clk 0:02:48]}  Ndf6 {[%clk 0:02:51]} 14. a3 {[%clk 0:02:46]}  Bd7 {[%clk 0:02:51]} 15. b4 {[%clk 0:02:45]}  b6 {[%clk 0:02:51]} 16. bxc5 {[%clk 0:02:44]}  bxc5 {[%clk 0:02:52]} 17. Rb1 {[%clk 0:02:43]}  Rab8 {[%clk 0:02:42]} 18. Qc2 {[%clk 0:02:37]}  Ng8 {[%clk 0:02:42]} 19. Rxb8 {[%clk 0:02:35]}  Rxb8 {[%clk 0:02:43]} 20. Rb1 {[%clk 0:02:34]}  Qd8 {[%clk 0:02:44]} 21. Nb5 {[%clk 0:02:31]}  Bxb5 {[%clk 0:02:25]} 22. cxb5 {[%clk 0:02:29]}  h5 {[%clk 0:02:24]} 23. a4 {[%clk 0:02:25]}  Bf6 {[%clk 0:02:19]} 24. Ng2 {[%clk 0:02:24]}  h4 {[%clk 0:02:19]} 25. a5 {[%clk 0:02:22]}  h3 {[%clk 0:02:16]} 26. Ne3 {[%clk 0:02:21]}  Bg5 {[%clk 0:02:16]} 27. Nc4 {[%clk 0:02:14]}  Kg7 {[%clk 0:02:06]} 28. f4 {[%clk 0:02:06]}  exf4 {[%clk 0:01:59]} 29. gxf4 {[%clk 0:02:07]}  Bf6 {[%clk 0:01:59]} 30. Kh1 {[%clk 0:02:05]}  Bd4 {[%clk 0:01:56]} 31. Qd3 {[%clk 0:02:02]}  Ngf6 {[%clk 0:01:34]} 32. Bf3 {[%clk 0:01:55]}  Qd7 {[%clk 0:01:24]} 33. b6 {[%clk 0:01:50]}  axb6 {[%clk 0:01:25]} 34. axb6 {[%clk 0:01:50]}  Ng4 {[%clk 0:01:05]} 35. Be1 {[%clk 0:01:37]}  Nf2+ {[%clk 0:00:53]} 36. Bxf2 {[%clk 0:01:36]}  Bxf2 {[%clk 0:00:54]} 37. Qe2 {[%clk 0:01:27]}  Bd4 {[%clk 0:00:48]} 38. Bg4 {[%clk 0:01:27]}  Qa4 {[%clk 0:00:42]} 39. Bxh3 {[%clk 0:01:23]}  Nf6 {[%clk 0:00:15]} 40. Nxd6 {[%clk 0:01:10]}  Nh5 {[%clk 0:00:10]} 41. Nf5+ {[%clk 0:00:45]}  Kh7 {[%clk 0:00:06]} 42. Nxd4 {[%clk 0:00:43]}  Qxd4 {[%clk 0:00:07]} 43. Qf3 {[%clk 0:00:39]}  c4 {[%clk 0:00:05]} 44. b7 {[%clk 0:00:35]}  c3 {[%clk 0:00:05]} 45. Bc8 {[%clk 0:00:29]}  c2 {[%clk 0:00:04]} 46. Rc1 {[%clk 0:00:25]}  Qd2 {[%clk 0:00:04]} 47. Qf1 {[%clk 0:00:21]}  Nxf4 {[%clk 0:00:04]} 48. d6 {[%clk 0:00:18]}  Kg7 {[%clk 0:00:04]} 49. d7 {[%clk 0:00:18]}  Nh3 {[%clk 0:00:02]} 50. d8=Q {[%clk 0:00:11]}  Qxd8 {[%clk 0:00:03]} 51. Rxc2 {[%clk 0:00:09]}  Ng5 {[%clk 0:00:03]} 52. Re2 {[%clk 0:00:06]}  Qe7 {[%clk 0:00:02]} 53. Qf4 {[%clk 0:00:05]}  Nh3 {[%clk 0:00:01]} 54. Qxb8 {[%clk 0:00:04]}  Qg5 {[%clk 0:00:02]} 55. Qg3 {[%clk 0:00:04]}  Qc1+ {[%clk 0:00:02]} 56. Kg2 {[%clk 0:00:04]}  Nf4+ {[%clk 0:00:03]} 57. Kf3 {[%clk 0:00:02]}  Qf1+ {[%clk 0:00:03]} 58. Qf2 {[%clk 0:00:02]}  Qh3+ {[%clk 0:00:03]} 59. Kxf4 {[%clk 0:00:02]}  Kf6 {[%clk 0:00:03]} 60. e5+ {[%clk 0:00:02]}  Ke7 {[%clk 0:00:03]} 61. Ke4 {[%clk 0:00:03]}  Qb3 {[%clk 0:00:02]} 62. Qf6+ {[%clk 0:00:03]}  Kf8 {[%clk 0:00:02]} 63. Qd6+ {[%clk 0:00:03]}  Kg7 {[%clk 0:00:02]} 64. Qd4 {[%clk 0:00:03]}  Qb1+ {[%clk 0:00:02]} 65. Ke3 {[%clk 0:00:03]}  Qg1+ {[%clk 0:00:02]} 66. Kd3 {[%clk 0:00:04]}  Qd1+ {[%clk 0:00:02]} 67. Rd2 {[%clk 0:00:04]}  Qb3+ {[%clk 0:00:02]} 68. Ke4 {[%clk 0:00:04]}  Qb1+ {[%clk 0:00:02]} 69. Kd5 {[%clk 0:00:03]}  Qb5+ {[%clk 0:00:02]} 70. Kd6 {[%clk 0:00:04]}  Kf8 {[%clk 0:00:02]} 71. Kc7 {[%clk 0:00:04]}  Qa5+ {[%clk 0:00:02]} 72. Qb6 {[%clk 0:00:04]}  Qxd2 {[%clk 0:00:01]} 73. Qd6+ {[%clk 0:00:05]}  Kg7 {[%clk 0:00:01]} 74. Qxd2 {[%clk 0:00:04]}  f5 {[%clk 0:00:02]} 75. Qc3 {[%clk 0:00:05]}  Kh6 {[%clk 0:00:02]} 76. e6 {[%clk 0:00:06]}  Kg5 {[%clk 0:00:02]} 77. Qd2+ {[%clk 0:00:07]}  f4 {[%clk 0:00:03]} 78. Qe1 {[%clk 0:00:07]}  Kg4 {[%clk 0:00:03]} 79. e7+ {[%clk 0:00:08]}  Kf3 {[%clk 0:00:03]} 80. e8=Q {[%clk 0:00:07]}  g5 {[%clk 0:00:04]} 81. Q8e2# {[%clk 0:00:07]} 1-0


[Site "https://www.chess.com"]

[Event "Titled Tuesday Blitz June 28 Late 2022"]
[White "De Souza, Cristiano Gomes"]
[Black "Janturin, Artur"]
[WhiteFideId "2151758"]
[BlackFideId "4130022"]
[WhiteElo "2068"]
[BlackElo "2392"]
[Result "1-0"]
[Round "05"]
[TimeControl "180+1"]
[Date "2022.06.29"]
[WhiteClock "0:00:12"]
[BlackClock "0:00:10"]

1. d4 {[%clk 0:03:00]}  e6 {[%clk 0:02:59]} 2. c4 {[%clk 0:03:00]}  b6 {[%clk 0:03:00]} 3. Nc3 {[%clk 0:02:58]}  Bb7 {[%clk 0:02:59]} 4. a3 {[%clk 0:02:58]}  f5 {[%clk 0:02:58]} 5. Nf3 {[%clk 0:02:58]}  Nf6 {[%clk 0:02:58]} 6. g3 {[%clk 0:02:58]}  Be7 {[%clk 0:02:59]} 7. Bg2 {[%clk 0:02:58]}  O-O {[%clk 0:03:00]} 8. O-O {[%clk 0:02:59]}  Ne4 {[%clk 0:03:00]} 9. Qc2 {[%clk 0:02:58]}  Nxc3 {[%clk 0:02:59]} 10. Qxc3 {[%clk 0:02:58]}  Bf6 {[%clk 0:03:00]} 11. Rd1 {[%clk 0:02:55]}  d6 {[%clk 0:02:58]} 12. Qc2 {[%clk 0:02:51]}  Be4 {[%clk 0:02:56]} 13. Qd2 {[%clk 0:02:48]}  Nd7 {[%clk 0:02:54]} 14. b3 {[%clk 0:02:48]}  Nc5 {[%clk 0:02:03]} 15. Qa2 {[%clk 0:02:37]}  Nd7 {[%clk 0:01:35]} 16. Qd2 {[%clk 0:02:29]}  Qe8 {[%clk 0:01:33]} 17. Bb2 {[%clk 0:02:28]}  Qh5 {[%clk 0:01:28]} 18. Ne1 {[%clk 0:02:26]}  Bxg2 {[%clk 0:01:16]} 19. Nxg2 {[%clk 0:02:25]}  g5 {[%clk 0:01:16]} 20. f3 {[%clk 0:02:16]}  Bg7 {[%clk 0:01:01]} 21. Bc3 {[%clk 0:02:04]}  Rf6 {[%clk 0:00:53]} 22. Kf2 {[%clk 0:01:18]}  Re8 {[%clk 0:00:43]} 23. b4 {[%clk 0:01:11]}  Rh6 {[%clk 0:00:35]} 24. Rh1 {[%clk 0:00:55]}  Qg6 {[%clk 0:00:26]} 25. h4 {[%clk 0:00:47]}  Bf6 {[%clk 0:00:20]} 26. hxg5 {[%clk 0:00:41]}  Bxg5 {[%clk 0:00:21]} 27. Nf4 {[%clk 0:00:36]}  Bxf4 {[%clk 0:00:18]} 28. Qxf4 {[%clk 0:00:35]}  Rxh1 {[%clk 0:00:18]} 29. Rxh1 {[%clk 0:00:34]}  e5 {[%clk 0:00:17]} 30. dxe5 {[%clk 0:00:29]}  dxe5 {[%clk 0:00:18]} 31. Qd2 {[%clk 0:00:28]}  Nf6 {[%clk 0:00:17]} 32. Rh6 {[%clk 0:00:19]}  Qf7 {[%clk 0:00:15]} 33. Qg5+ {[%clk 0:00:18]}  Qg7 {[%clk 0:00:14]} 34. Qxf6 {[%clk 0:00:15]}  Qxf6 {[%clk 0:00:12]} 35. Rxf6 {[%clk 0:00:14]}  e4 {[%clk 0:00:11]} 36. Rxf5 {[%clk 0:00:14]}  e3+ {[%clk 0:00:11]} 37. Kg2 {[%clk 0:00:14]}  Rd8 {[%clk 0:00:11]} 38. Rd5 {[%clk 0:00:13]}  Re8 {[%clk 0:00:10]} 39. Rd7 {[%clk 0:00:12]} 1-0


[Site "https://www.chess.com"]

[Event "Titled Tuesday Blitz June 28 Late 2022"]
[White "Della Morte, German"]
[Black "Kuzmin, Roman"]
[WhiteFideId "113522"]
[BlackFideId "44134932"]
[WhiteElo "2363"]
[BlackElo "1968"]
[Result "0-1"]
[Round "05"]
[TimeControl "180+1"]
[Date "2022.06.29"]
[WhiteClock "0:00:04"]
[BlackClock "0:00:03"]

1. e4 {[%clk 0:03:00]}  c5 {[%clk 0:02:59]} 2. Nf3 {[%clk 0:03:01]}  d6 {[%clk 0:02:59]} 3. d4 {[%clk 0:03:01]}  cxd4 {[%clk 0:03:00]} 4. Nxd4 {[%clk 0:03:02]}  Nf6 {[%clk 0:03:00]} 5. Nc3 {[%clk 0:03:01]}  a6 {[%clk 0:03:00]} 6. Bg5 {[%clk 0:03:02]}  e6 {[%clk 0:02:59]} 7. f4 {[%clk 0:03:02]}  h6 {[%clk 0:02:59]} 8. Bh4 {[%clk 0:03:02]}  Qb6 {[%clk 0:02:59]} 9. a3 {[%clk 0:03:02]}  Nbd7 {[%clk 0:02:55]} 10. Bf2 {[%clk 0:03:02]}  Qc7 {[%clk 0:02:54]} 11. Qf3 {[%clk 0:03:02]}  b5 {[%clk 0:02:53]} 12. O-O-O {[%clk 0:03:01]}  Bb7 {[%clk 0:02:53]} 13. g4 {[%clk 0:02:59]}  Be7 {[%clk 0:02:48]} 14. h4 {[%clk 0:02:54]}  Nc5 {[%clk 0:02:25]} 15. Bd3 {[%clk 0:02:46]}  O-O-O {[%clk 0:01:51]} 16. g5 {[%clk 0:02:40]}  Nfd7 {[%clk 0:01:41]} 17. Kb1 {[%clk 0:02:30]}  g6 {[%clk 0:01:37]} 18. b4 {[%clk 0:01:54]}  Nxd3 {[%clk 0:01:29]} 19. cxd3 {[%clk 0:01:53]}  hxg5 {[%clk 0:01:24]} 20. hxg5 {[%clk 0:01:50]}  Kb8 {[%clk 0:00:16]} 21. Ncxb5 {[%clk 0:01:36]}  axb5 {[%clk 0:00:15]} 22. Rc1 {[%clk 0:01:26]}  Rxh1 {[%clk 0:00:15]} 23. Qxh1 {[%clk 0:01:25]}  Qb6 {[%clk 0:00:16]} 24. Nc6+ {[%clk 0:01:21]}  Qxc6 {[%clk 0:00:16]} 25. Rxc6 {[%clk 0:01:20]}  Bxc6 {[%clk 0:00:17]} 26. Qh7 {[%clk 0:01:16]}  Rf8 {[%clk 0:00:16]} 27. f5 {[%clk 0:01:11]}  exf5 {[%clk 0:00:13]} 28. exf5 {[%clk 0:01:10]}  Bxg5 {[%clk 0:00:12]} 29. Qh3 {[%clk 0:00:53]}  Ne5 {[%clk 0:00:10]} 30. Bg1 {[%clk 0:00:20]}  Re8 {[%clk 0:00:07]} 31. fxg6 {[%clk 0:00:17]}  fxg6 {[%clk 0:00:07]} 32. Qg3 {[%clk 0:00:18]}  Bd8 {[%clk 0:00:05]} 33. Qe3 {[%clk 0:00:16]}  Bc7 {[%clk 0:00:04]} 34. Qa7+ {[%clk 0:00:16]}  Kc8 {[%clk 0:00:05]} 35. Bb6 {[%clk 0:00:16]}  Bxb6 {[%clk 0:00:04]} 36. Qxb6 {[%clk 0:00:17]}  Kd7 {[%clk 0:00:04]} 37. Qa7+ {[%clk 0:00:16]}  Ke6 {[%clk 0:00:03]} 38. Kc2 {[%clk 0:00:16]}  Nf3 {[%clk 0:00:02]} 39. Qg7 {[%clk 0:00:15]}  Ne5 {[%clk 0:00:02]} 40. d4 {[%clk 0:00:14]}  Nc4 {[%clk 0:00:01]} 41. Qxg6+ {[%clk 0:00:14]}  Kd7 {[%clk 0:00:02]} 42. Qf5+ {[%clk 0:00:15]}  Kc7 {[%clk 0:00:02]} 43. Qf7+ {[%clk 0:00:13]}  Bd7 {[%clk 0:00:02]} 44. a4 {[%clk 0:00:13]}  Re2+ {[%clk 0:00:02]} 45. Kd3 {[%clk 0:00:13]}  Re3+ {[%clk 0:00:02]} 46. Kc2 {[%clk 0:00:14]}  Re2+ {[%clk 0:00:03]} 47. Kd1 {[%clk 0:00:14]}  Re3 {[%clk 0:00:03]} 48. axb5 {[%clk 0:00:14]}  Rd3+ {[%clk 0:00:02]} 49. Kc2 {[%clk 0:00:13]}  Rxd4 {[%clk 0:00:02]} 50. b6+ {[%clk 0:00:14]}  Nxb6 {[%clk 0:00:02]} 51. Kc3 {[%clk 0:00:11]}  Rc4+ {[%clk 0:00:02]} 52. Kb3 {[%clk 0:00:11]}  Kc6 {[%clk 0:00:02]} 53. Qf3+ {[%clk 0:00:10]}  d5 {[%clk 0:00:02]} 54. Qf6+ {[%clk 0:00:10]}  Kc7 {[%clk 0:00:03]} 55. Qe5+ {[%clk 0:00:10]}  Kb7 {[%clk 0:00:02]} 56. Qd6 {[%clk 0:00:10]}  Ba4+ {[%clk 0:00:03]} 57. Ka3 {[%clk 0:00:10]}  Rc3+ {[%clk 0:00:03]} 58. Ka2 {[%clk 0:00:11]}  Rc6 {[%clk 0:00:04]} 59. Qe7+ {[%clk 0:00:11]}  Ka6 {[%clk 0:00:04]} 60. Qf8 {[%clk 0:00:11]}  Kb5 {[%clk 0:00:03]} 61. Qe7 {[%clk 0:00:09]}  Rc2+ {[%clk 0:00:03]} 62. Kb1 {[%clk 0:00:10]}  Rc4 {[%clk 0:00:02]} 63. Ka2 {[%clk 0:00:10]}  Rxb4 {[%clk 0:00:02]} 64. Qe8+ {[%clk 0:00:10]}  Ka5 {[%clk 0:00:02]} 65. Qd8 {[%clk 0:00:09]}  Rc4 {[%clk 0:00:02]} 66. Kb2 {[%clk 0:00:09]}  Rc2+ {[%clk 0:00:02]} 67. Kb1 {[%clk 0:00:10]}  Rc4 {[%clk 0:00:02]} 68. Qd6 {[%clk 0:00:09]}  d4 {[%clk 0:00:02]} 69. Kb2 {[%clk 0:00:09]}  Rc2+ {[%clk 0:00:02]} 70. Kb1 {[%clk 0:00:09]}  Rc4 {[%clk 0:00:02]} 71. Kb2 {[%clk 0:00:09]}  Rb4+ {[%clk 0:00:02]} 72. Kc1 {[%clk 0:00:08]}  Kb5 {[%clk 0:00:03]} 73. Qe5+ {[%clk 0:00:07]}  Kc4 {[%clk 0:00:03]} 74. Qe6+ {[%clk 0:00:04]}  Nd5 {[%clk 0:00:03]} 75. Qc8+ {[%clk 0:00:05]}  Kd3 {[%clk 0:00:03]} 76. Qf5+ {[%clk 0:00:04]}  Kc4 {[%clk 0:00:02]} 77. Qc8+ {[%clk 0:00:05]}  Kb3 {[%clk 0:00:03]} 78. Qe6 {[%clk 0:00:05]}  Rc4+ {[%clk 0:00:03]} 79. Kd2 {[%clk 0:00:05]}  Nb4 {[%clk 0:00:03]} 80. Qf7 {[%clk 0:00:05]}  d3 {[%clk 0:00:03]} 81. Qe6 {[%clk 0:00:05]}  Na2 {[%clk 0:00:03]} 82. Qf7 {[%clk 0:00:05]}  Nb4 {[%clk 0:00:04]} 83. Qe6 {[%clk 0:00:05]}  Bc6 {[%clk 0:00:04]} 84. Qg8 {[%clk 0:00:05]}  Bd5 {[%clk 0:00:04]} 85. Qb8 {[%clk 0:00:04]}  Rc2+ {[%clk 0:00:04]} 86. Ke3 {[%clk 0:00:05]}  Re2+ {[%clk 0:00:04]} 87. Kf4 {[%clk 0:00:04]}  Re4+ {[%clk 0:00:04]} 88. Kf3 {[%clk 0:00:04]}  Re8+ {[%clk 0:00:03]} 0-1


[Site "https://www.chess.com"]

[Event "Titled Tuesday Blitz June 28 Late 2022"]
[White "Desideri, Ricardo Maruchi"]
[Black "Rosen, Eric"]
[WhiteFideId "2110440"]
[BlackFideId "2032562"]
[WhiteElo "1945"]
[BlackElo "2362"]
[Result "0-1"]
[Round "05"]
[TimeControl "180+1"]
[Date "2022.06.29"]
[WhiteClock "0:01:04"]
[BlackClock "0:01:47"]

1. e4 {[%clk 0:03:00]}  e5 {[%clk 0:03:00]} 2. Nf3 {[%clk 0:03:00]}  Nc6 {[%clk 0:03:00]} 3. Bc4 {[%clk 0:02:58]}  Nf6 {[%clk 0:02:57]} 4. Ng5 {[%clk 0:02:56]}  Bc5 {[%clk 0:02:51]} 5. Nxf7 {[%clk 0:02:52]}  Bxf2+ {[%clk 0:02:51]} 6. Kf1 {[%clk 0:02:50]}  Qe7 {[%clk 0:02:51]} 7. Nxh8 {[%clk 0:02:47]}  d5 {[%clk 0:02:51]} 8. exd5 {[%clk 0:02:35]}  Nd4 {[%clk 0:02:51]} 9. h3 {[%clk 0:02:27]}  Ne4 {[%clk 0:02:21]} 10. d3 {[%clk 0:01:41]}  Qf6 {[%clk 0:01:56]} 11. g4 {[%clk 0:01:04]}  Be3+ {[%clk 0:01:47]} 0-1


[Site "https://www.chess.com"]

[Event "Titled Tuesday Blitz June 28 Late 2022"]
[White "Djokic, Mihailo"]
[Black "Ibarra Jerez, Jose Carlos"]
[WhiteFideId "976440"]
[BlackFideId "2226332"]
[WhiteElo "2255"]
[BlackElo "2628"]
[Result "1-0"]
[Round "05"]
[TimeControl "180+1"]
[Date "2022.06.28"]
[WhiteClock "0:00:04"]
[BlackClock "0:00:04"]

1. e4 {[%clk 0:03:00]}  c5 {[%clk 0:02:59]} 2. Nf3 {[%clk 0:02:59]}  e6 {[%clk 0:03:00]} 3. d4 {[%clk 0:02:59]}  cxd4 {[%clk 0:03:00]} 4. Nxd4 {[%clk 0:03:00]}  Bc5 {[%clk 0:03:01]} 5. Nc3 {[%clk 0:03:00]}  Qb6 {[%clk 0:03:01]} 6. Na4 {[%clk 0:02:52]}  Qa5+ {[%clk 0:02:58]} 7. c3 {[%clk 0:02:49]}  Bxd4 {[%clk 0:02:58]} 8. Qxd4 {[%clk 0:02:48]}  Nf6 {[%clk 0:02:58]} 9. Nc5 {[%clk 0:02:33]}  Nc6 {[%clk 0:02:54]} 10. Qd6 {[%clk 0:02:20]}  b6 {[%clk 0:02:53]} 11. Nb3 {[%clk 0:02:20]}  Qe5 {[%clk 0:02:53]} 12. Qxe5 {[%clk 0:02:18]}  Nxe5 {[%clk 0:02:54]} 13. f3 {[%clk 0:02:17]}  d5 {[%clk 0:02:54]} 14. exd5 {[%clk 0:02:13]}  Nxd5 {[%clk 0:02:54]} 15. Bd2 {[%clk 0:02:04]}  Bb7 {[%clk 0:02:54]} 16. Bb5+ {[%clk 0:02:02]}  Bc6 {[%clk 0:02:53]} 17. Be2 {[%clk 0:01:54]}  O-O-O {[%clk 0:02:52]} 18. O-O-O {[%clk 0:01:53]}  Bb7 {[%clk 0:02:51]} 19. Rhe1 {[%clk 0:01:47]}  Ng6 {[%clk 0:02:51]} 20. g3 {[%clk 0:01:47]}  Rd7 {[%clk 0:02:46]} 21. c4 {[%clk 0:01:45]}  Nde7 {[%clk 0:02:43]} 22. Bc3 {[%clk 0:01:45]}  f6 {[%clk 0:02:39]} 23. Nd4 {[%clk 0:01:41]}  Nf8 {[%clk 0:02:06]} 24. Nb5 {[%clk 0:01:40]}  Nc6 {[%clk 0:02:01]} 25. Rxd7 {[%clk 0:01:38]}  Nxd7 {[%clk 0:01:59]} 26. Rd1 {[%clk 0:01:37]}  Nde5 {[%clk 0:01:35]} 27. f4 {[%clk 0:01:35]}  Nf7 {[%clk 0:01:35]} 28. Bf3 {[%clk 0:01:32]}  a6 {[%clk 0:01:18]} 29. Nd6+ {[%clk 0:01:19]}  Nxd6 {[%clk 0:01:18]} 30. Rxd6 {[%clk 0:01:20]}  Nd8 {[%clk 0:01:10]} 31. Bxb7+ {[%clk 0:01:19]}  Kxb7 {[%clk 0:01:10]} 32. Rd7+ {[%clk 0:01:19]}  Kc6 {[%clk 0:01:10]} 33. Rxg7 {[%clk 0:01:20]}  e5 {[%clk 0:00:51]} 34. fxe5 {[%clk 0:01:19]}  f5 {[%clk 0:00:45]} 35. b4 {[%clk 0:01:08]}  Re8 {[%clk 0:00:43]} 36. Rxh7 {[%clk 0:01:07]}  b5 {[%clk 0:00:43]} 37. c5 {[%clk 0:00:59]}  Ne6 {[%clk 0:00:43]} 38. Kd2 {[%clk 0:00:52]}  Kd5 {[%clk 0:00:43]} 39. Ke3 {[%clk 0:00:51]}  Kc4 {[%clk 0:00:43]} 40. Be1 {[%clk 0:00:44]}  Rd8 {[%clk 0:00:43]} 41. Re7 {[%clk 0:00:41]}  Rd3+ {[%clk 0:00:43]} 42. Kf2 {[%clk 0:00:39]}  Nd4 {[%clk 0:00:43]} 43. Rf7 {[%clk 0:00:35]}  Rf3+ {[%clk 0:00:43]} 44. Kg2 {[%clk 0:00:35]}  Ra3 {[%clk 0:00:35]} 45. Bf2 {[%clk 0:00:30]}  Rxa2 {[%clk 0:00:35]} 46. e6 {[%clk 0:00:27]}  Nxe6 {[%clk 0:00:32]} 47. Rxf5 {[%clk 0:00:28]}  Kxb4 {[%clk 0:00:32]} 48. c6 {[%clk 0:00:27]}  Rc2 {[%clk 0:00:32]} 49. Rf6 {[%clk 0:00:24]}  Rxc6 {[%clk 0:00:32]} 50. h4 {[%clk 0:00:25]}  a5 {[%clk 0:00:32]} 51. Be1+ {[%clk 0:00:24]}  Ka4 {[%clk 0:00:30]} 52. h5 {[%clk 0:00:24]}  Rc2+ {[%clk 0:00:28]} 53. Bf2 {[%clk 0:00:19]}  Ng5 {[%clk 0:00:26]} 54. h6 {[%clk 0:00:15]}  b4 {[%clk 0:00:25]} 55. Rg6 {[%clk 0:00:13]}  Nf7 {[%clk 0:00:13]} 56. Rf6 {[%clk 0:00:13]}  Nh8 {[%clk 0:00:09]} 57. Rf8 {[%clk 0:00:09]}  Ng6 {[%clk 0:00:09]} 58. Rg8 {[%clk 0:00:09]}  Rc6 {[%clk 0:00:02]} 59. h7 {[%clk 0:00:08]}  Rc7 {[%clk 0:00:01]} 60. Rxg6 {[%clk 0:00:07]}  Rxh7 {[%clk 0:00:02]} 61. Rb6 {[%clk 0:00:07]}  Rc7 {[%clk 0:00:02]} 62. g4 {[%clk 0:00:07]}  b3 {[%clk 0:00:02]} 63. g5 {[%clk 0:00:04]}  Rc4 {[%clk 0:00:03]} 64. Kf3 {[%clk 0:00:04]}  Rb4 {[%clk 0:00:02]} 65. Rxb4+ {[%clk 0:00:03]}  Kxb4 {[%clk 0:00:03]} 66. Bd4 {[%clk 0:00:04]}  a4 {[%clk 0:00:03]} 67. g6 {[%clk 0:00:04]}  a3 {[%clk 0:00:04]} 68. g7 {[%clk 0:00:04]}  b2 {[%clk 0:00:04]} 69. g8=Q {[%clk 0:00:04]}  Ka4 {[%clk 0:00:03]} 70. Qa2 {[%clk 0:00:04]}  b1=Q {[%clk 0:00:03]} 71. Qxb1 {[%clk 0:00:03]}  a2 {[%clk 0:00:03]} 72. Qxa2+ {[%clk 0:00:03]}  Kb5 {[%clk 0:00:04]} 73. Qd5+ {[%clk 0:00:04]} 1-0


[Site "https://www.chess.com"]